fUSD/lending_fUSD_20260405
["ID","MTS","AMOUNT","RATE_DAILY","PERIOD"]
[419820472,1775397075806,-500.0,0.00031148,120]
[419820473,1775397075816,-973.4969,0.000312,2]
[419820474,1775397075826,-2000.0,0.000312,2]
[419820475,1775397075835,-1338.34,0.00031224,30]
[419820476,1775397075845,-2000.0,0.00031233,2]
[419820477,1775397075854,-162.0,0.0003136,3]
[419820478,1775397075864,-1572.0,0.0003136,3]
[419820479,1775397075874,-162.0,0.0003136,3]
[419820480,1775397075883,-1572.0,0.0003136,3]
[419820481,1775397075893,-585.64,0.00031361,120]
[419820482,1775397075903,-1338.34,0.00031378,30]
[419820483,1775397075913,-660.955249,0.000314,30]
[419820484,1775397075924,-350.0,0.00031438,3]
[419820485,1775397075935,-3000.0,0.00031452,21]
[419820486,1775397075945,-1800.0,0.00031452,21]
[419820487,1775397075956,-199.36502316,0.000315,2]
[419820488,1775397075966,-150.0,0.000315,2]
[419820489,1775397075978,-224.42752814,0.000315,14]
[419820490,1775397075991,-2455.283666,0.000315,8]
[419820491,1775397076000,-500.0,0.00031507,30]
[419820492,1775397076011,-500.0,0.00031507,30]
[419820493,1775397076023,-404.0,0.00031507,30]
[419820494,1775397076032,-150.0,0.00031507,2]
[419820495,1775397076043,-1338.34,0.00031531,30]
[419820496,1775397076053,-503.0,0.00031563,18]
[419820497,1775397076063,-350.0,0.00031566,5]
[419820498,1775397076073,-1592.56,0.00031579,30]
[419820499,1775397076085,-200.0,0.00031628,2]
[419820500,1775397076096,-200.0,0.00031628,2]
[419820501,1775397076108,-200.0,0.00031628,2]
[419820502,1775397076120,-622.0,0.0003163,2]
[419820503,1775397076131,-1347.0,0.0003163,2]
[419820504,1775397076142,-3522.0,0.0003163,2]
[419820505,1775397076153,-1263.0,0.0003163,2]
[419820506,1775397076163,-3770.0,0.0003163,2]
[419820507,1775397076173,-415.0,0.0003163,2]
[419820508,1775397076182,-585.64,0.00031635,120]
[419820509,1775397076192,-200.0,0.00031644,2]
[419820510,1775397076203,-200.0,0.00031644,2]
[419820511,1775397076213,-200.0,0.00031646,2]
[419820512,1775397076223,-200.0,0.00031646,2]
[419820513,1775397076233,-1572.0,0.0003166,3]
[419820514,1775397076243,-1572.0,0.0003168,3]
[419820515,1775397076253,-1572.0,0.0003168,3]
[419820516,1775397076263,-1572.0,0.0003168,3]
[419820517,1775397076273,-2000.0,0.0003168,22]
[419820518,1775397076283,-2000.0,0.0003168,22]
[419820519,1775397076537,-2000.0,0.0003168,22]
[419820520,1775397076548,-2000.0,0.0003168,22]
[419820521,1775397076559,-200.0,0.00031742,2]
[419820522,1775397076568,-200.0,0.00031755,2]
[419820523,1775397076577,-250.0,0.00031755,2]
[419820524,1775397076587,-585.64,0.00031768,120]
[419820525,1775397076597,-2000.0,0.00031781,2]
[419820526,1775397076607,-2000.0,0.00031857,2]
[419820527,1775397076617,-250.0,0.00031863,21]
[419820528,1775397076628,-350.0,0.00031864,5]
[419820529,1775397076639,-1337.87763051,0.0003188,30]
[419820530,1775397076650,-200.0,0.000319,5]
[419820531,1775397076660,-1572.0,0.0003192,3]
[419820532,1775397076669,-269.64166329,0.00031973,120]
[419820533,1775397076678,-150.0,0.00031973,120]
[419820534,1775397076688,-477.02735348,0.00031979,4]
[419820535,1775397076699,-248.173173,0.00031997,7]
[419820536,1775397076708,-150.0,0.00031999,2]
[419820537,1775397076718,-1892.02290491,0.00031999,2]
[419820538,1775397076728,-150.0,0.00031999,2]
[419820539,1775397076738,-4640.37710129,0.00031999,2]
[419820540,1775397076749,-150.0,0.00031999,2]
[419820541,1775397076759,-7913.75757777,0.00031999,2]
[419820542,1775397076770,-2000.0,0.00031999,26]
[419820543,1775397076779,-2000.0,0.00031999,26]
[419820544,1775397076789,-151.0,0.00032,4]
[419820545,1775397076799,-1472369.37551206,0.00032,120]
[419820546,1775397078352,-6592.65842985,0.00032,120]
[419820547,1775397078703,-0.21262609,0.00032,120]
[419820548,1775397086167,-300.0,8.58e-05,2]
[419820549,1775397086178,-300.0,8.58e-05,2]
[419820550,1775397086188,-9400.01,8.581e-05,2]
[419820551,1775397086211,-5000.01,8.581e-05,2]
[419820552,1775397086224,-5000.01,8.581e-05,2]
[419820553,1775397086239,-481.64,8.581e-05,2]
[419820554,1775397113881,10000.01,8.624e-05,2]
[419820555,1775397113919,10000.01,8.624e-05,2]
[419820556,1775397132420,-10000.01,8.624e-05,2]
[419820557,1775397132536,-10000.01,8.624e-05,2]
[419820558,1775397132717,-10000.01,8.624e-05,2]
[419820559,1775397132839,-10000.01,8.624e-05,2]
[419820560,1775397132943,-10000.01,8.624e-05,2]
[419820561,1775397133068,-10000.01,8.624e-05,2]
[419820562,1775397135691,-10000.01,8.624e-05,2]
[419820563,1775397138217,-10000.01,8.624e-05,2]
[419820564,1775397138324,-10000.01,8.624e-05,2]
[419820565,1775397138438,-10000.01,8.624e-05,2]
[419820566,1775397138626,-10000.01,8.624e-05,2]
[419820567,1775397138719,-10000.01,8.624e-05,2]
[419820568,1775397139251,-10000.01,8.624e-05,2]
[419820569,1775397139478,-10000.01,8.624e-05,2]
[419820571,1775397257411,481.0,8.178e-05,2]
[419820572,1775397281383,160.0,8.6e-05,60]
[419820574,1775397430005,150.0,8.342e-05,2]
[419820575,1775397525378,3856.2136,8.523e-05,2]
[419820578,1775397642510,2500.0,0.0001155,10]
[419820579,1775397643940,-200.0,8.6e-05,2]
[419820580,1775397643969,-200.0,8.6e-05,2]
[419820581,1775397643998,-200.0,8.6e-05,2]
[419820582,1775397644029,-300.0,8.6e-05,2]
[419820583,1775397644061,-1200.0,8.6e-05,2]
[419820584,1775397644092,-300.0,8.6e-05,2]
[419820585,1775397644121,-300.0,8.6e-05,2]
[419820586,1775397644193,-445.78368822,8.6e-05,2]
[419820587,1775397644231,-891.56737644,8.6e-05,2]
[419820588,1775397644285,-1783.13475288,8.6e-05,2]
[419820589,1775397644342,-3566.26950576,8.6e-05,2]
[419820590,1775397644639,-2867.47098848,8.6e-05,2]
[419820591,1775397644649,-273.0,8.6e-05,2]
[419820592,1775397644659,-250.0,8.601e-05,2]
[419820593,1775397644668,-1200.0,8.602e-05,2]
[419820594,1775397644678,-150.0,8.603e-05,2]
[419820595,1775397644688,-500.0,8.603e-05,2]
[419820596,1775397644697,-500.0,8.603e-05,2]
[419820597,1775397644708,-500.0,8.603e-05,2]
[419820598,1775397644719,-500.0,8.603e-05,2]
[419820599,1775397644729,-500.0,8.603e-05,2]
[419820600,1775397644738,-77.01,8.603e-05,2]
[419820601,1775397644753,-422.99,8.603e-05,2]
[419820602,1775397644763,-500.0,8.603e-05,2]
[419820603,1775397644773,-250.0,8.609e-05,2]
[419820604,1775397644782,-151.0,8.621e-05,2]
[419820605,1775397644793,-150.0,8.622e-05,2]
[419820606,1775397644802,-232.00571695,8.622e-05,2]
[419820607,1775397644812,-970.57447965,8.623e-05,2]
[419820608,1775397644822,-970.57447965,8.623e-05,2]
[419820609,1775397644832,-970.57447965,8.623e-05,2]
[419820610,1775397644842,-970.57447965,8.623e-05,2]
[419820611,1775397644854,-970.57447965,8.623e-05,2]
[419820612,1775397644863,-970.57447965,8.623e-05,2]
[419820613,1775397644872,-970.57447965,8.623e-05,2]
[419820614,1775397644884,-608.42554906,8.623e-05,2]
[419820615,1775397644899,-362.14893059,8.623e-05,2]
[419820616,1775397644908,-970.57447965,8.623e-05,2]
[419820617,1775397644918,-970.57447965,8.623e-05,2]
[419820618,1775397644929,-970.57447965,8.623e-05,2]
[419820619,1775397644938,-970.57447965,8.623e-05,2]
[419820620,1775397644948,-970.57447965,8.623e-05,2]
[419820621,1775397644958,-970.57447965,8.623e-05,2]
[419820622,1775397644967,-970.57447965,8.623e-05,2]
[419820623,1775397644977,-970.57447965,8.623e-05,2]
[419820624,1775397644986,-90.13047933,8.623e-05,2]
[419820625,1775397645022,-880.44400032,8.623e-05,2]
[419820626,1775397645031,-970.57447965,8.623e-05,2]
[419820627,1775397645041,-970.57447965,8.623e-05,2]
[419820628,1775397645050,-970.57447965,8.623e-05,2]
[419820629,1775397645060,-970.57447965,8.623e-05,2]
[419820630,1775397645070,-970.57447965,8.623e-05,2]
[419820631,1775397645080,-700.42409567,8.623e-05,2]
[419820632,1775397645636,-270.15038398,8.623e-05,2]
[419820633,1775397645670,-970.57447965,8.623e-05,2]
[419820634,1775397645704,-970.57447965,8.623e-05,2]
[419820635,1775397645738,-970.57447965,8.623e-05,2]
[419820636,1775397645771,-970.57447965,8.623e-05,2]
[419820637,1775397645804,-724.53891519,8.623e-05,2]
[419820638,1775397645899,-246.03556446,8.623e-05,2]
[419820639,1775397645932,-967.58809663,8.623e-05,2]
[419820640,1775397645966,-967.58809663,8.623e-05,2]
[419820641,1775397645999,-967.58809663,8.623e-05,2]
[419820642,1775397646033,-967.58809663,8.623e-05,2]
[419820643,1775397646386,-799.64600141,8.623e-05,2]
[419820644,1775397646463,-167.94209522,8.623e-05,2]
[419820645,1775397646497,-967.58809663,8.623e-05,2]
[419820646,1775397646531,-967.58809663,8.623e-05,2]
[419820647,1775397646567,-967.58809663,8.623e-05,2]
[419820648,1775397646601,-967.58809663,8.623e-05,2]
[419820649,1775397646636,-955.83293989,8.623e-05,2]
[419820650,1775397646934,-11.75515674,8.623e-05,2]
[419820651,1775397646944,-413.97765968,8.623e-05,2]
[419820652,1775397657342,1143.7964,8.584e-05,2]
[419820653,1775397657367,1356.2036,8.584e-05,2]
[419820654,1775397667642,1065.369257,7.945e-05,2]
[419820655,1775397687066,2578.437143,8.523e-05,2]
[419820656,1775397687088,5000.01,8.523e-05,2]
[419820657,1775397687110,5000.01,8.523e-05,2]
[419820658,1775397687133,5000.01,8.523e-05,2]
[419820659,1775397687155,5000.01,8.523e-05,2]
[419820660,1775397687176,5000.01,8.523e-05,2]
[419820661,1775397687197,5000.01,8.523e-05,2]
[419820662,1775397687218,5000.01,8.523e-05,2]
[419820663,1775397687240,5000.01,8.523e-05,2]
[419820664,1775397691252,-4519.01,8.523e-05,2]
[419820665,1775397691335,-5000.01,8.523e-05,2]
[419820666,1775397691436,-5000.01,8.523e-05,2]
[419820667,1775397691549,-5000.01,8.523e-05,2]
[419820668,1775397691673,-5000.01,8.523e-05,2]
[419820669,1775397691780,-5000.01,8.523e-05,2]
[419820670,1775397694151,-594.332457,8.523e-05,2]
[419820671,1775397709375,-2500.0,8.524e-05,2]
[419820672,1775397712106,0.01,8.178e-05,2]
[419820673,1775397712129,3345.427556,8.178e-05,2]
[419820674,1775397724551,-272.0,8.524e-05,2]
[419820675,1775397743073,-10000.01,8.602e-05,2]
[419820676,1775397743227,5000.01,8.523e-05,2]
[419820677,1775397743251,1773.592,8.523e-05,2]
[419820678,1775397743281,-10000.01,8.602e-05,2]
[419820679,1775397743347,-10000.01,8.602e-05,2]
[419820680,1775397743479,-761.18231428,8.602e-05,2]
[419820681,1775397743511,-503.19697935,8.603e-05,2]
[419820682,1775397743542,-500.0,8.603e-05,2]
[419820683,1775397743572,-500.0,8.603e-05,2]
[419820684,1775397743602,-500.0,8.603e-05,2]
[419820685,1775397743631,-500.0,8.603e-05,2]
[419820686,1775397743661,-500.0,8.603e-05,2]
[419820687,1775397743688,-307.43596926,8.603e-05,2]
[419820688,1775397743716,-501.03587191,8.603e-05,2]
[419820689,1775397743743,-354.3077304,8.603e-05,2]
[419820690,1775397744146,-145.6922696,8.603e-05,2]
[419820691,1775397744174,-500.0,8.603e-05,2]
[419820692,1775397744202,-500.0,8.603e-05,2]
[419820693,1775397744231,-250.0,8.622e-05,2]
[419820694,1775397744258,-669.88,8.623e-05,2]
[419820695,1775397744635,-145.6922696,8.623e-05,2]
[419820696,1775397744655,-5868.8654608,8.623e-05,2]
[419820697,1775397746060,-10000.01,8.623e-05,2]
[419820698,1775397850345,10000.01,8.523e-05,2]
[419820699,1775397850368,10000.01,8.523e-05,2]
[419820700,1775397850739,5436.0915,8.523e-05,2]
[419820701,1775397856059,2500.0,8.523e-05,2]
[419820703,1775398008184,5000.01,8.523e-05,2]
[419820704,1775398008207,5000.01,8.523e-05,2]
[419820705,1775398008228,5000.01,8.523e-05,2]
[419820706,1775398008251,5000.01,8.523e-05,2]
[419820707,1775398008273,424.4256,8.523e-05,2]
[419820708,1775398014429,2500.0,8.523e-05,2]
[419820709,1775398018274,949.26,4.124e-05,2]
[419820710,1775398018617,949.26,4.341e-05,2]
[419820711,1775398018758,949.26,4.558e-05,2]
[419820712,1775398018864,949.26,4.775e-05,2]
[419820713,1775398019056,949.26,4.992e-05,2]
[419820714,1775398019254,949.26,5.209e-05,2]
[419820715,1775398019454,949.26,5.426e-05,2]
[419820716,1775398019676,949.26,5.643e-05,2]
[419820717,1775398019867,949.26,5.86e-05,2]
[419820718,1775398020064,949.26,6.077e-05,2]
[419820719,1775398020264,507.41,6.294e-05,2]
[419820720,1775398020288,441.85,6.294e-05,2]
[419820721,1775398020455,949.26,6.511e-05,2]
[419820722,1775398020647,949.26,6.728e-05,2]
[419820723,1775398020847,949.26,6.945e-05,2]
[419820724,1775398021056,949.26,7.162e-05,2]
[419820725,1775398021247,949.26,7.379e-05,2]
[419820726,1775398021439,949.26,7.596e-05,2]
[419820727,1775398021861,949.26,7.813e-05,2]
[419820728,1775398022058,949.26,8.03e-05,2]
[419820729,1775398022233,949.26,8.247e-05,2]
[419820731,1775398052078,-300.0,8.601e-05,2]
[419820732,1775398052101,-273.0,8.601e-05,2]
[419820733,1775398052125,-1276.3662903,8.602e-05,2]
[419820734,1775398068474,10000.01,8.353e-05,2]
[419820735,1775398068499,5651.08,8.353e-05,2]
[419820736,1775398101005,150.0,8.344e-05,2]
[419820737,1775398101228,1500.0,8.38e-05,2]
[419820738,1775398169972,7635.0988,8.523e-05,2]
[419820739,1775398172083,-300.0,8.602e-05,2]
[419820740,1775398172114,-1200.0,8.602e-05,2]
[419820741,1775398172144,-273.0,8.602e-05,2]
[419820742,1775398172173,-481.0,8.602e-05,2]
[419820743,1775398172201,-300.0,8.602e-05,2]
[419820744,1775398172232,-250.0,8.602e-05,2]
[419820745,1775398173324,-4184.5797,8.603e-05,2]
[419820746,1775398175151,-2668.5897,8.603e-05,2]
[419820747,1775398175209,-4662.8306,8.603e-05,2]
[419820748,1775398175239,-150.0,8.603e-05,2]
[419820749,1775398175292,-3900.0,8.603e-05,2]
[419820750,1775398175369,-612.8306,8.603e-05,2]
[419820751,1775398175390,-150.0,8.603e-05,2]
[419820752,1775398175412,-374.3488,8.603e-05,2]
[419820753,1775398175446,-3673.7335667,8.603e-05,2]
[419820754,1775398175475,-150.0,8.622e-05,2]
[419820755,1775398175505,-150.0,8.622e-05,2]
[419820756,1775398175535,-150.0,8.622e-05,2]
[419820757,1775398175572,-870.05675021,8.622e-05,2]
[419820758,1775398175656,-12.42936618,8.622e-05,2]
[419820759,1775398175666,-882.48611639,8.622e-05,2]
[419820760,1775398175676,-211.30420052,8.622e-05,2]
[419820761,1775398175751,-671.18191587,8.622e-05,2]
[419820762,1775398175788,-882.48611639,8.622e-05,2]
[419820763,1775398175825,-882.48611639,8.622e-05,2]
[419820764,1775398175863,-882.48611639,8.622e-05,2]
[419820765,1775398175912,-882.48611639,8.622e-05,2]
[419820766,1775398175951,-715.27112075,8.622e-05,2]
[419820767,1775398176113,-167.21499564,8.622e-05,2]
[419820768,1775398176149,-882.48611639,8.622e-05,2]
[419820769,1775398176187,-882.48611639,8.622e-05,2]
[419820770,1775398176225,-882.48611639,8.622e-05,2]
[419820771,1775398176261,-882.48611639,8.622e-05,2]
[419820772,1775398176297,-882.48611639,8.622e-05,2]
[419820773,1775398176396,-882.48611639,8.622e-05,2]
[419820774,1775398176433,-882.48611639,8.622e-05,2]
[419820775,1775398176471,-882.48611639,8.622e-05,2]
[419820776,1775398176510,-882.48611639,8.622e-05,2]
[419820777,1775398176549,-882.48611639,8.622e-05,2]
[419820778,1775398176595,-292.66271971,8.622e-05,2]
[419820779,1775398177409,2500.0,8.523e-05,2]
[419820780,1775398177645,-468.34137707,8.622e-05,2]
[419820781,1775398177665,-121.48201961,8.622e-05,2]
[419820782,1775398177675,-719.23682521,8.622e-05,2]
[419820783,1775398177691,-163.24929118,8.622e-05,2]
[419820784,1775398177702,-719.23682521,8.622e-05,2]
[419820785,1775398177717,-163.24929118,8.622e-05,2]
[419820786,1775398177727,-719.23682521,8.622e-05,2]
[419820787,1775398177746,-163.24929118,8.622e-05,2]
[419820788,1775398177756,-719.23682521,8.622e-05,2]
[419820789,1775398177776,-163.24929118,8.622e-05,2]
[419820790,1775398177786,-719.23682521,8.622e-05,2]
[419820791,1775398177806,-163.24929118,8.622e-05,2]
[419820792,1775398177817,-719.23682521,8.622e-05,2]
[419820793,1775398177837,-163.24929118,8.622e-05,2]
[419820794,1775398177849,-719.23682521,8.622e-05,2]
[419820795,1775398178314,-163.24929118,8.622e-05,2]
[419820796,1775398178360,-882.48611639,8.622e-05,2]
[419820797,1775398178404,-882.48611639,8.622e-05,2]
[419820798,1775398178448,-882.48611639,8.622e-05,2]
[419820799,1775398178493,-882.48611639,8.622e-05,2]
[419820800,1775398178541,-882.48611639,8.622e-05,2]
[419820801,1775398178615,-882.48611639,8.622e-05,2]
[419820802,1775398178663,-882.48611639,8.622e-05,2]
[419820803,1775398178710,-882.48611639,8.622e-05,2]
[419820804,1775398178760,-882.48611639,8.622e-05,2]
[419820805,1775398178908,-882.48611639,8.622e-05,2]
[419820806,1775398178974,-292.66271971,8.622e-05,2]
[419820807,1775398179081,-589.82339668,8.622e-05,2]
[419820808,1775398179147,-882.48611639,8.622e-05,2]
[419820809,1775398179207,-882.48611639,8.622e-05,2]
[419820810,1775398179265,-882.48611639,8.622e-05,2]
[419820811,1775398179325,-882.48611639,8.622e-05,2]
[419820812,1775398179382,-877.98815913,8.622e-05,2]
[419820813,1775398179703,-4.49795726,8.622e-05,2]
[419820814,1775398179751,-882.48611639,8.622e-05,2]
[419820815,1775398179815,-882.48611639,8.622e-05,2]
[419820816,1775398179889,-882.48611639,8.622e-05,2]
[419820817,1775398180005,-882.48611639,8.622e-05,2]
[419820818,1775398180090,-882.48611639,8.622e-05,2]
[419820819,1775398180165,-283.66680519,8.622e-05,2]
[419820820,1775398181254,-310.65454875,8.622e-05,2]
[419820821,1775398181334,-288.16476245,8.622e-05,2]
[419820822,1775398181351,-266.34841531,8.622e-05,2]
[419820823,1775398181365,-327.97293863,8.622e-05,2]
[419820824,1775398181429,-547.72482303,8.622e-05,2]
[419820825,1775398181444,-334.76129336,8.622e-05,2]
[419820826,1775398191052,-273.0,8.622e-05,2]
[419820827,1775398191088,-540.9364683,8.622e-05,2]
[419820828,1775398191124,-875.69776166,8.622e-05,2]
[419820829,1775398191159,-875.69776166,8.622e-05,2]
[419820830,1775398191194,-875.69776166,8.622e-05,2]
[419820831,1775398191227,-875.69776166,8.622e-05,2]
[419820832,1775398191263,-490.85720846,8.622e-05,2]
[419820833,1775398191443,-384.8405532,8.622e-05,2]
[419820834,1775398209312,10000.01,8.522e-05,2]
[419820835,1775398209337,10000.01,8.522e-05,2]
[419820836,1775398209360,10000.01,8.522e-05,2]
[419820837,1775398209384,10000.01,8.522e-05,2]
[419820838,1775398209408,10000.01,8.522e-05,2]
[419820839,1775398209431,10000.01,8.522e-05,2]
[419820840,1775398209455,5000.01,8.522e-05,2]
[419820841,1775398209479,5000.01,8.522e-05,2]
[419820842,1775398209504,5000.01,8.522e-05,2]
[419820843,1775398209527,5000.01,8.522e-05,2]
[419820860,1775398232258,-1600.0,8.38e-05,2]
[419820861,1775398232268,-1066.33773602,8.522e-05,2]
[419820862,1775398232291,-841.60151792,8.522e-05,2]
[419820863,1775398232303,-149435.66067266,8.522e-05,2]
[419820864,1775398232315,-123735.32592217,8.522e-05,2]
[419820865,1775398232326,-154811.79172987,8.522e-05,2]
[419820866,1775398232338,-157633.83411666,8.522e-05,2]
[419820870,1775398237630,-832475.3483047,8.522e-05,2]
[419820871,1775398237640,-500.0,8.603e-05,2]
[419820872,1775398237651,-500.0,8.603e-05,2]
[419820873,1775398237661,-1200.0,8.621e-05,2]
[419820874,1775398237671,-875.69776166,8.622e-05,2]
[419820875,1775398237680,-875.69776166,8.622e-05,2]
[419820876,1775398237690,-875.69776166,8.622e-05,2]
[419820877,1775398237699,-875.69776166,8.622e-05,2]
[419820878,1775398237710,-875.69776166,8.622e-05,2]
[419820879,1775398237719,-875.69776166,8.622e-05,2]
[419820880,1775398237729,-875.69776166,8.622e-05,2]
[419820881,1775398237739,-875.69776166,8.622e-05,2]
[419820882,1775398237748,-875.69776166,8.622e-05,2]
[419820883,1775398237758,-875.69776166,8.622e-05,2]
[419820884,1775398237768,-875.69776166,8.622e-05,2]
[419820885,1775398237777,-875.69776166,8.622e-05,2]
[419820886,1775398237787,-875.69776166,8.622e-05,2]
[419820887,1775398237797,-875.69776166,8.622e-05,2]
[419820888,1775398237807,-875.69776166,8.622e-05,2]
[419820889,1775398237817,-875.69776166,8.622e-05,2]
[419820890,1775398237827,-875.69776166,8.622e-05,2]
[419820891,1775398237837,-875.69776166,8.622e-05,2]
[419820892,1775398237847,-875.69776166,8.622e-05,2]
[419820893,1775398237857,-875.69776166,8.622e-05,2]
[419820894,1775398237866,-875.69776166,8.622e-05,2]
[419820895,1775398237876,-500.0,8.622e-05,2]
[419820896,1775398237885,-500.0,8.622e-05,2]
[419820897,1775398237895,-229.58990254,8.622e-05,2]
[419820898,1775398237904,-509.96516708,8.622e-05,2]
[419820899,1775398237914,-509.96516708,8.622e-05,2]
[419820900,1775398237923,-509.96516708,8.622e-05,2]
[419820901,1775398237933,-509.96516708,8.622e-05,2]
[419820902,1775398237942,-509.96516708,8.622e-05,2]
[419820903,1775398237952,-509.96516708,8.622e-05,2]
[419820904,1775398237962,-509.96516708,8.622e-05,2]
[419820905,1775398237973,-509.96516708,8.622e-05,2]
[419820906,1775398237984,-509.96516708,8.622e-05,2]
[419820907,1775398237995,-509.96516708,8.622e-05,2]
[419820908,1775398238005,-509.96516708,8.622e-05,2]
[419820909,1775398238016,-509.96516708,8.622e-05,2]
[419820910,1775398238026,-509.96516708,8.622e-05,2]
[419820911,1775398238036,-509.96516708,8.622e-05,2]
[419820912,1775398238046,-509.96516708,8.622e-05,2]
[419820913,1775398238056,-509.96516708,8.622e-05,2]
[419820914,1775398238066,-509.96516708,8.622e-05,2]
[419820915,1775398238076,-500.0,8.622e-05,2]
[419820916,1775398238085,-166.12572575,8.622e-05,2]
[419820917,1775398238094,-501.00649781,8.622e-05,2]
[419820918,1775398238104,-266.33715607,8.623e-05,2]
[419820919,1775398238113,-500.0,8.623e-05,2]
[419820920,1775398238123,-500.0,8.623e-05,2]
[419820921,1775398238132,-500.0,8.623e-05,2]
[419820922,1775398238142,-500.0,8.623e-05,2]
[419820923,1775398238152,-500.0,8.623e-05,2]
[419820925,1775398238162,-500.0,8.623e-05,2]
[419820927,1775398238172,-500.0,8.623e-05,2]
[419820929,1775398238181,-415.72253135,8.623e-05,2]
[419820931,1775398238191,-500.0,8.623e-05,2]
[419820933,1775398238200,-561.93308072,8.623e-05,2]
[419820935,1775398238210,-500.0,8.623e-05,2]
[419820936,1775398238219,-500.0,8.623e-05,2]
[419820937,1775398238229,-500.0,8.623e-05,2]
[419820938,1775398238239,-500.0,8.623e-05,2]
[419820939,1775398238248,-538.01086083,8.623e-05,2]
[419820940,1775398238258,-500.0,8.623e-05,2]
[419820941,1775398238267,-215.4062951,8.623e-05,2]
[419820942,1775398238277,-477.26908755,8.623e-05,2]
[419820943,1775398238287,-258157.9081073,8.623e-05,2]
[419820944,1775398238297,-4817.9468167,8.623e-05,2]
[419820945,1775398238306,-329.2585,8.624e-05,2]
[419820946,1775398238316,-2500000.0,8.624e-05,2]
[419820947,1775398238326,-500.0,8.624e-05,2]
[419820948,1775398238335,-351.47,8.624e-05,2]
[419820949,1775398238345,-14036.26116848,8.624e-05,2]
[419820950,1775398238355,-6785.0871,8.625e-05,2]
[419820951,1775398238364,-34680.75,8.625e-05,2]
[419820952,1775398238374,-1905.86,8.625e-05,2]
[419820953,1775398238384,-166.66,8.632e-05,2]
[419820954,1775398238394,-327.34,8.672e-05,2]
[419820955,1775398238403,-10891.57,8.672e-05,2]
[419820956,1775398238413,-2459.19,8.672e-05,2]
[419820957,1775398238422,-1000.0,8.724e-05,2]
[419820958,1775398238432,-2540.07,8.847e-05,2]
[419820959,1775398238441,-299.99,8.847e-05,2]
[419820960,1775398238450,-409.0,8.855e-05,2]
[419820961,1775398238460,-500.0,8.898e-05,2]
[419820962,1775398238470,-1275.22400258,8.905e-05,2]
[419820963,1775398238479,-166.66,8.916e-05,2]
[419820964,1775398238488,-249.27,8.97e-05,2]
[419820965,1775398238497,-999.99,8.97e-05,2]
[419820966,1775398238506,-9999.99,8.97e-05,2]
[419820967,1775398238515,-150.99,8.97e-05,2]
[419820968,1775398238525,-9999.99,8.97e-05,2]
[419820969,1775398238534,-721.97,8.97e-05,2]
[419820970,1775398238544,-271.0,8.979e-05,2]
[419820971,1775398238553,-426.0,8.997e-05,2]
[419820972,1775398238563,-879.65842586,8.999e-05,2]
[419820973,1775398238572,-173.0,8.999e-05,2]
[419820974,1775398238581,-258.0,9.015e-05,2]
[419820975,1775398238591,-1484.0,9.017e-05,2]
[419820976,1775398238600,-437.0,9.035e-05,2]
[419820977,1775398238610,-247.0,9.053e-05,2]
[419820978,1775398238619,-1782.0,9.071e-05,2]
[419820979,1775398238629,-300.0,9.089e-05,2]
[419820980,1775398238638,-1385.0,9.095e-05,2]
[419820981,1775398238648,-304.0,9.107e-05,2]
[419820982,1775398238657,-1353.0,9.113e-05,2]
[419820983,1775398238667,-1019.0,9.125e-05,2]
[419820984,1775398238676,-956.0,9.131e-05,2]
[419820985,1775398238686,-1992.0,9.15e-05,2]
[419820986,1775398238695,-1001.14299175,9.151e-05,2]
[419820987,1775398238704,-1000.0,9.151e-05,2]
[419820988,1775398238714,-1000.0,9.151e-05,2]
[419820989,1775398238723,-1571.0,9.168e-05,2]
[419820990,1775398238732,-500.0,9.172e-05,2]
[419820991,1775398238741,-862.0,9.186e-05,2]
[419820992,1775398238751,-166.66,9.201e-05,2]
[419820993,1775398238760,-1600.0,9.428e-05,2]
[419820994,1775398238770,-548.80709996,9.446e-05,2]
[419820995,1775398238780,-250.0,9.461e-05,2]
[419820996,1775398238789,-420.0,9.462e-05,2]
[419820997,1775398238799,-290.25550646,9.462e-05,2]
[419820998,1775398238808,-255.51004428,9.462e-05,2]
[419820999,1775398238818,-250.0,9.462e-05,2]
[419821000,1775398238827,-1680.0,9.483e-05,2]
[419821001,1775398238837,-250.0,9.483e-05,2]
[419821002,1775398238846,-166.66,9.486e-05,2]